[Event "Titled Tuesday Blitz October 31 Late 2023"]
[White "subham777"]
[Black "Zivic, Dragan"]
[BlackFideId "904740"]
[WhiteElo "2520"]
[BlackElo "2323"]
[Result "1-0"]
[Round "2"]
[TimeControl "180+1"]
[Date "2023.10.31"]
[WhiteClock "0:02:18"]
[BlackClock "0:01:59"]
[Board "124"]

1. e4 {[%clk 0:03:00]}  c6 {[%clk 0:02:59]} 2. c4 {[%clk 0:02:58]}  d5 {[%clk 0:03:00]} 3. cxd5 {[%clk 0:02:58]}  cxd5 {[%clk 0:03:01]} 4. exd5 {[%clk 0:02:59]}  Nf6 {[%clk 0:03:01]} 5. Nc3 {[%clk 0:02:58]}  Nxd5 {[%clk 0:03:00]} 6. Nf3 {[%clk 0:02:57]}  Nc6 {[%clk 0:03:00]} 7. Bc4 {[%clk 0:02:55]}  Nxc3 {[%clk 0:02:34]} 8. bxc3 {[%clk 0:02:53]}  e6 {[%clk 0:02:32]} 9. O-O {[%clk 0:02:52]}  Be7 {[%clk 0:02:32]} 10. d4 {[%clk 0:02:53]}  O-O {[%clk 0:02:32]} 11. Re1 {[%clk 0:02:52]}  Bf6 {[%clk 0:02:32]} 12. Bf4 {[%clk 0:02:49]}  b6 {[%clk 0:02:32]} 13. Qe2 {[%clk 0:02:47]}  Bb7 {[%clk 0:02:32]} 14. Rad1 {[%clk 0:02:47]}  Re8 {[%clk 0:02:32]} 15. Bd3 {[%clk 0:02:47]}  Na5 {[%clk 0:02:30]} 16. Ne5 {[%clk 0:02:43]}  Rc8 {[%clk 0:02:24]} 17. Bxh7+ {[%clk 0:02:31]}  Kxh7 {[%clk 0:02:23]} 18. Qh5+ {[%clk 0:02:31]}  Kg8 {[%clk 0:02:21]} 19. Qxf7+ {[%clk 0:02:32]}  Kh7 {[%clk 0:02:11]} 20. Rd3 {[%clk 0:02:25]}  Rc7 {[%clk 0:02:02]} 21. Rh3+ {[%clk 0:02:21]}  Bh4 {[%clk 0:02:02]} 22. Qh5+ {[%clk 0:02:19]}  Kg8 {[%clk 0:01:59]} 23. Rxh4 {[%clk 0:02:18]} 1-0


[Site "https://www.chess.com"]

[Event "Titled Tuesday Blitz October 31 Late 2023"]
[White "Ward, Ieuan C"]
[Black "HeroRubiksCube"]
[WhiteFideId "406627"]
[WhiteElo "2313"]
[BlackElo "2513"]
[Result "0-1"]
[Round "2"]
[TimeControl "180+1"]
[Date "2023.10.31"]
[WhiteClock "0:01:09"]
[BlackClock "0:00:24"]
[Board "127"]

1. e4 {[%clk 0:03:00]}  d5 {[%clk 0:02:59]} 2. a3 {[%clk 0:02:59]}  dxe4 {[%clk 0:02:58]} 3. Nc3 {[%clk 0:02:59]}  Nf6 {[%clk 0:02:59]} 4. Qe2 {[%clk 0:03:00]}  g6 {[%clk 0:02:56]} 5. Nxe4 {[%clk 0:02:59]}  Nxe4 {[%clk 0:02:55]} 6. Qxe4 {[%clk 0:03:00]}  Bg7 {[%clk 0:02:56]} 7. c3 {[%clk 0:02:59]}  O-O {[%clk 0:02:56]} 8. d4 {[%clk 0:03:00]}  c6 {[%clk 0:02:56]} 9. f4 {[%clk 0:03:00]}  Bf5 {[%clk 0:02:56]} 10. Qe3 {[%clk 0:02:59]}  c5 {[%clk 0:02:56]} 11. dxc5 {[%clk 0:02:54]}  e5 {[%clk 0:02:53]} 12. fxe5 {[%clk 0:02:42]}  Re8 {[%clk 0:02:52]} 13. Nf3 {[%clk 0:02:38]}  Nc6 {[%clk 0:02:52]} 14. Bb5 {[%clk 0:02:31]}  Bxe5 {[%clk 0:02:37]} 15. Kf1 {[%clk 0:02:16]}  Qd1+ {[%clk 0:02:26]} 16. Ne1 {[%clk 0:02:12]}  Rad8 {[%clk 0:01:44]} 17. Be2 {[%clk 0:02:10]}  Qd7 {[%clk 0:01:37]} 18. Qf2 {[%clk 0:02:06]}  Na5 {[%clk 0:01:23]} 19. Bf4 {[%clk 0:02:02]}  Bxf4 {[%clk 0:01:18]} 20. Qxf4 {[%clk 0:02:03]}  Rxe2 {[%clk 0:01:07]} 21. Kxe2 {[%clk 0:02:01]}  Nb3 {[%clk 0:00:58]} 22. Rc1 {[%clk 0:01:50]}  Nxc1+ {[%clk 0:00:35]} 23. Qxc1 {[%clk 0:01:50]}  Qb5+ {[%clk 0:00:35]} 24. c4 {[%clk 0:01:47]}  Qxc5 {[%clk 0:00:33]} 25. Rf1 {[%clk 0:01:22]}  Re8+ {[%clk 0:00:32]} 26. Kf3 {[%clk 0:01:22]}  Be4+ {[%clk 0:00:29]} 27. Kg3 {[%clk 0:01:21]}  Qc7+ {[%clk 0:00:27]} 28. Qf4 {[%clk 0:01:20]}  Qxc4 {[%clk 0:00:26]} 29. Nf3 {[%clk 0:01:09]}  Qxf1 {[%clk 0:00:24]} 0-1


[Site "https://www.chess.com"]

[Event "Titled Tuesday Blitz October 31 Late 2023"]
[White "SlippperyWhenWet"]
[Black "maksimys18"]
[WhiteElo "2312"]
[BlackElo "2505"]
[Result "1/2-1/2"]
[Round "2"]
[TimeControl "180+1"]
[Date "2023.10.31"]
[WhiteClock "0:00:13"]
[BlackClock "0:00:25"]
[Board "129"]

1. Nc3 {[%clk 0:02:59]}  e6 {[%clk 0:03:00]} 2. d4 {[%clk 0:02:56]}  d5 {[%clk 0:03:01]} 3. Nf3 {[%clk 0:02:56]}  f5 {[%clk 0:03:01]} 4. Bf4 {[%clk 0:02:54]}  Nf6 {[%clk 0:03:00]} 5. Nb5 {[%clk 0:02:49]}  Na6 {[%clk 0:02:58]} 6. e3 {[%clk 0:02:40]}  c6 {[%clk 0:02:58]} 7. Nc3 {[%clk 0:02:40]}  Bd6 {[%clk 0:02:57]} 8. Bxd6 {[%clk 0:02:40]}  Qxd6 {[%clk 0:02:57]} 9. Ne2 {[%clk 0:02:37]}  O-O {[%clk 0:02:56]} 10. Nf4 {[%clk 0:02:34]}  Nc7 {[%clk 0:02:56]} 11. Nd3 {[%clk 0:02:33]}  Ne4 {[%clk 0:02:55]} 12. c3 {[%clk 0:02:24]}  Bd7 {[%clk 0:02:55]} 13. Nfe5 {[%clk 0:02:23]}  Be8 {[%clk 0:02:55]} 14. Be2 {[%clk 0:02:23]}  c5 {[%clk 0:02:51]} 15. f3 {[%clk 0:02:21]}  cxd4 {[%clk 0:02:49]} 16. exd4 {[%clk 0:02:15]}  Nf6 {[%clk 0:02:47]} 17. O-O {[%clk 0:02:13]}  Bb5 {[%clk 0:02:37]} 18. Qd2 {[%clk 0:02:12]}  Rae8 {[%clk 0:02:34]} 19. Rfe1 {[%clk 0:02:11]}  Nd7 {[%clk 0:02:34]} 20. Nxd7 {[%clk 0:01:49]}  Bxd7 {[%clk 0:02:32]} 21. Ne5 {[%clk 0:01:47]}  Re7 {[%clk 0:02:29]} 22. a4 {[%clk 0:01:36]}  Ne8 {[%clk 0:02:27]} 23. Bb5 {[%clk 0:01:33]}  Bxb5 {[%clk 0:02:26]} 24. axb5 {[%clk 0:01:34]}  a6 {[%clk 0:02:25]} 25. bxa6 {[%clk 0:01:33]}  bxa6 {[%clk 0:02:26]} 26. b4 {[%clk 0:01:31]}  Nf6 {[%clk 0:02:24]} 27. Ra5 {[%clk 0:01:28]}  Rc8 {[%clk 0:02:22]} 28. Rea1 {[%clk 0:01:27]}  Rec7 {[%clk 0:02:16]} 29. Rxa6 {[%clk 0:01:24]}  Qe7 {[%clk 0:02:16]} 30. R6a3 {[%clk 0:01:16]}  Nd7 {[%clk 0:02:16]} 31. Nxd7 {[%clk 0:01:04]}  Qxd7 {[%clk 0:02:17]} 32. Rb1 {[%clk 0:01:04]}  Qb5 {[%clk 0:02:15]} 33. Ra5 {[%clk 0:01:01]}  Qc4 {[%clk 0:02:15]} 34. Rc5 {[%clk 0:01:00]}  Rxc5 {[%clk 0:02:11]} 35. bxc5 {[%clk 0:01:01]}  h6 {[%clk 0:02:10]} 36. Qe3 {[%clk 0:00:58]}  Rc6 {[%clk 0:02:06]} 37. h4 {[%clk 0:00:48]}  Kh7 {[%clk 0:02:01]} 38. h5 {[%clk 0:00:48]}  f4 {[%clk 0:01:54]} 39. Qxf4 {[%clk 0:00:38]}  Qxc3 {[%clk 0:01:54]} 40. Rb7 {[%clk 0:00:36]}  Ra6 {[%clk 0:01:33]} 41. Qe5 {[%clk 0:00:23]}  Qc1+ {[%clk 0:01:27]} 42. Kh2 {[%clk 0:00:23]}  Qg5 {[%clk 0:01:27]} 43. Qxg5 {[%clk 0:00:20]}  hxg5 {[%clk 0:01:28]} 44. Rb6 {[%clk 0:00:20]}  Ra4 {[%clk 0:01:27]} 45. Rxe6 {[%clk 0:00:19]}  Rxd4 {[%clk 0:01:27]} 46. Rd6 {[%clk 0:00:20]}  Rd2 {[%clk 0:01:20]} 47. Kh3 {[%clk 0:00:19]}  d4 {[%clk 0:01:19]} 48. g4 {[%clk 0:00:17]}  d3 {[%clk 0:01:15]} 49. c6 {[%clk 0:00:17]}  Rc2 {[%clk 0:01:12]} 50. Rxd3 {[%clk 0:00:17]}  Rxc6 {[%clk 0:01:12]} 51. Rd5 {[%clk 0:00:18]}  Kh6 {[%clk 0:01:12]} 52. Kg3 {[%clk 0:00:18]}  Ra6 {[%clk 0:01:12]} 53. Rd8 {[%clk 0:00:18]}  Kh7 {[%clk 0:01:12]} 54. Rf8 {[%clk 0:00:18]}  Ra1 {[%clk 0:01:10]} 55. Rf5 {[%clk 0:00:19]}  Kh6 {[%clk 0:01:10]} 56. Rc5 {[%clk 0:00:19]}  Rg1+ {[%clk 0:01:09]} 57. Kh3 {[%clk 0:00:19]}  Rf1 {[%clk 0:01:08]} 58. Kg2 {[%clk 0:00:19]}  Ra1 {[%clk 0:01:08]} 59. Rc6+ {[%clk 0:00:19]}  Kh7 {[%clk 0:01:08]} 60. Rg6 {[%clk 0:00:20]}  Ra5 {[%clk 0:01:08]} 61. Kf2 {[%clk 0:00:21]}  Rb5 {[%clk 0:01:08]} 62. Ke3 {[%clk 0:00:21]}  Ra5 {[%clk 0:01:08]} 63. Ke4 {[%clk 0:00:22]}  Rb5 {[%clk 0:01:04]} 64. Re6 {[%clk 0:00:21]}  Ra5 {[%clk 0:01:03]} 65. Re5 {[%clk 0:00:21]}  Ra4+ {[%clk 0:01:03]} 66. Ke3 {[%clk 0:00:19]}  Kh6 {[%clk 0:01:03]} 67. Re6+ {[%clk 0:00:20]}  Kh7 {[%clk 0:01:03]} 68. Re4 {[%clk 0:00:20]}  Ra3+ {[%clk 0:01:03]} 69. Kf2 {[%clk 0:00:20]}  Ra2+ {[%clk 0:01:03]} 70. Kg3 {[%clk 0:00:21]}  Ra5 {[%clk 0:01:03]} 71. Rd4 {[%clk 0:00:20]}  Ra3 {[%clk 0:01:03]} 72. Rd5 {[%clk 0:00:19]}  Kh6 {[%clk 0:01:03]} 73. Rd6+ {[%clk 0:00:20]}  Kh7 {[%clk 0:01:03]} 74. Kf2 {[%clk 0:00:20]}  Ra2+ {[%clk 0:01:03]} 75. Ke3 {[%clk 0:00:21]}  Ra3+ {[%clk 0:01:03]} 76. Ke4 {[%clk 0:00:21]}  Ra4+ {[%clk 0:01:03]} 77. Ke5 {[%clk 0:00:22]}  Ra3 {[%clk 0:00:54]} 78. Kf5 {[%clk 0:00:18]}  Ra5+ {[%clk 0:00:52]} 79. Ke4 {[%clk 0:00:18]}  Ra4+ {[%clk 0:00:52]} 80. Rd4 {[%clk 0:00:18]}  Ra3 {[%clk 0:00:50]} 81. Rd5 {[%clk 0:00:18]}  Kh6 {[%clk 0:00:48]} 82. Rd6+ {[%clk 0:00:18]}  Kh7 {[%clk 0:00:48]} 83. Rg6 {[%clk 0:00:18]}  Ra4+ {[%clk 0:00:46]} 84. Ke5 {[%clk 0:00:16]}  Ra5+ {[%clk 0:00:45]} 85. Ke6 {[%clk 0:00:15]}  Ra6+ {[%clk 0:00:37]} 86. Kf5 {[%clk 0:00:15]}  Ra5+ {[%clk 0:00:37]} 87. Ke4 {[%clk 0:00:15]}  Ra4+ {[%clk 0:00:37]} 88. Ke3 {[%clk 0:00:15]}  Ra5 {[%clk 0:00:36]} 89. Re6 {[%clk 0:00:14]}  Ra1 {[%clk 0:00:35]} 90. Ke4 {[%clk 0:00:14]}  Ra5 {[%clk 0:00:30]} 91. Re5 {[%clk 0:00:14]}  Ra4+ {[%clk 0:00:29]} 92. Kf5 {[%clk 0:00:14]}  Rf4+ {[%clk 0:00:27]} 93. Kxg5 {[%clk 0:00:15]}  Rxf3 {[%clk 0:00:27]} 94. Re7 {[%clk 0:00:15]}  Rf6 {[%clk 0:00:24]} 95. Ra7 {[%clk 0:00:14]}  Rb6 {[%clk 0:00:24]} 96. Rf7 {[%clk 0:00:13]}  Rb5+ {[%clk 0:00:23]} 97. Rf5 {[%clk 0:00:13]}  Rb6 {[%clk 0:00:24]} 98. Kh4 {[%clk 0:00:14]}  Kh6 {[%clk 0:00:23]} 99. g5+ {[%clk 0:00:13]}  Kh7 {[%clk 0:00:24]} 100. g6+ {[%clk 0:00:12]}  Kh6 {[%clk 0:00:24]} 101. Rf4 {[%clk 0:00:13]}  Rb1 {[%clk 0:00:24]} 102. Rf8 {[%clk 0:00:12]}  Rb4+ {[%clk 0:00:22]} 103. Kg3 {[%clk 0:00:11]}  Kxh5 {[%clk 0:00:22]} 104. Rf5+ {[%clk 0:00:11]}  Kxg6 {[%clk 0:00:22]} 105. Rc5 {[%clk 0:00:11]}  Kf6 {[%clk 0:00:22]} 106. Kf3 {[%clk 0:00:12]}  g6 {[%clk 0:00:22]} 107. Kg3 {[%clk 0:00:12]}  Kg7 {[%clk 0:00:22]} 108. Rc3 {[%clk 0:00:13]}  Kh6 {[%clk 0:00:22]} 109. Kg2 {[%clk 0:00:13]}  Kh5 {[%clk 0:00:23]} 110. Kg3 {[%clk 0:00:14]}  g5 {[%clk 0:00:23]} 111. Kh3 {[%clk 0:00:14]}  Rb1 {[%clk 0:00:22]} 112. Kg3 {[%clk 0:00:14]}  Rg1+ {[%clk 0:00:23]} 113. Kh3 {[%clk 0:00:15]}  Rh1+ {[%clk 0:00:23]} 114. Kg3 {[%clk 0:00:15]}  Re1 {[%clk 0:00:22]} 115. Rc4 {[%clk 0:00:13]}  Re3+ {[%clk 0:00:21]} 116. Kg2 {[%clk 0:00:13]}  g4 {[%clk 0:00:21]} 117. Rc1 {[%clk 0:00:12]}  Kh4 {[%clk 0:00:21]} 118. Kg1 {[%clk 0:00:13]}  Kg3 {[%clk 0:00:20]} 119. Ra1 {[%clk 0:00:13]}  Kh3 {[%clk 0:00:21]} 120. Rb1 {[%clk 0:00:13]}  g3 {[%clk 0:00:21]} 121. Ra1 {[%clk 0:00:14]}  Rf3 {[%clk 0:00:21]} 122. Rb1 {[%clk 0:00:14]}  Re3 {[%clk 0:00:22]} 123. Ra1 {[%clk 0:00:14]}  Kg4 {[%clk 0:00:23]} 124. Rb1 {[%clk 0:00:15]}  Kf3 {[%clk 0:00:24]} 125. Ra1 {[%clk 0:00:15]}  Ke2 {[%clk 0:00:23]} 126. Ra2+ {[%clk 0:00:15]}  Kf3 {[%clk 0:00:23]} 127. Ra1 {[%clk 0:00:15]}  g2 {[%clk 0:00:24]} 128. Rb1 {[%clk 0:00:13]}  Kg3 {[%clk 0:00:24]} 129. Ra1 {[%clk 0:00:12]}  Rf3 {[%clk 0:00:24]} 130. Rb1 {[%clk 0:00:12]}  Rf1+ {[%clk 0:00:25]} 131. Rxf1 {[%clk 0:00:13]}  gxf1=Q+ {[%clk 0:00:25]} 132. Kxf1 {[%clk 0:00:13]} 1/2-1/2


[Site "https://www.chess.com"]

[Event "Titled Tuesday Blitz October 31 Late 2023"]
[White "Korkmaz, Necmettin"]
[Black "Lalanne, Pablo"]
[WhiteFideId "6303285"]
[BlackFideId "112151"]
[WhiteElo "2503"]
[BlackElo "2312"]
[Result "0-1"]
[Round "2"]
[TimeControl "180+1"]
[Date "2023.10.31"]
[WhiteClock "0:00:33"]
[BlackClock "0:00:51"]
[Board "130"]

1. e4 {[%clk 0:02:56]}  c5 {[%clk 0:02:59]} 2. Nc3 {[%clk 0:02:55]}  Nc6 {[%clk 0:02:59]} 3. f4 {[%clk 0:02:55]}  g6 {[%clk 0:02:59]} 4. Nf3 {[%clk 0:02:55]}  Bg7 {[%clk 0:02:59]} 5. Bc4 {[%clk 0:02:55]}  e6 {[%clk 0:02:59]} 6. O-O {[%clk 0:02:55]}  Nge7 {[%clk 0:02:59]} 7. d3 {[%clk 0:02:55]}  O-O {[%clk 0:02:58]} 8. Qe1 {[%clk 0:02:55]}  d5 {[%clk 0:02:58]} 9. Bb3 {[%clk 0:02:55]}  Rb8 {[%clk 0:02:46]} 10. f5 {[%clk 0:02:54]}  b5 {[%clk 0:02:45]} 11. a3 {[%clk 0:01:40]}  c4 {[%clk 0:02:43]} 12. Ba2 {[%clk 0:01:40]}  b4 {[%clk 0:02:38]} 13. axb4 {[%clk 0:01:37]}  Nxb4 {[%clk 0:02:39]} 14. Bf4 {[%clk 0:01:14]}  Nxc2 {[%clk 0:02:24]} 15. Qc1 {[%clk 0:01:13]}  Nxa1 {[%clk 0:02:24]} 16. Bxb8 {[%clk 0:01:11]}  Qb6+ {[%clk 0:02:24]} 17. Kh1 {[%clk 0:01:10]}  Qxb8 {[%clk 0:02:24]} 18. Qxa1 {[%clk 0:01:01]}  cxd3 {[%clk 0:02:24]} 19. exd5 {[%clk 0:01:00]}  Nxd5 {[%clk 0:02:02]} 20. Nxd5 {[%clk 0:01:00]}  exd5 {[%clk 0:02:02]} 21. fxg6 {[%clk 0:00:54]}  hxg6 {[%clk 0:02:01]} 22. Bxd5 {[%clk 0:00:54]}  Qxb2 {[%clk 0:01:53]} 23. Qxa7 {[%clk 0:00:54]}  Bf5 {[%clk 0:01:36]} 24. Ng5 {[%clk 0:00:52]}  Qf6 {[%clk 0:01:25]} 25. Qe3 {[%clk 0:00:49]}  Bh6 {[%clk 0:01:16]} 26. h4 {[%clk 0:00:49]}  Bxg5 {[%clk 0:01:13]} 27. hxg5 {[%clk 0:00:49]}  Qd6 {[%clk 0:01:00]} 28. Qd4 {[%clk 0:00:49]}  Rd8 {[%clk 0:00:56]} 29. Rxf5 {[%clk 0:00:41]}  gxf5 {[%clk 0:00:54]} 30. g6 {[%clk 0:00:33]}  Qxd5 {[%clk 0:00:51]} 31. gxf7+ {[%clk 0:00:33]}  Kxf7 {[%clk 0:00:51]} 0-1


[Site "https://www.chess.com"]

[Event "Titled Tuesday Blitz October 31 Late 2023"]
[White "The_Straightforward_Rook"]
[Black "Harriott, Tyrell"]
[BlackFideId "2086484"]
[WhiteElo "2500"]
[BlackElo "2311"]
[Result "1-0"]
[Round "2"]
[TimeControl "180+1"]
[Date "2023.10.31"]
[WhiteClock "0:00:36"]
[BlackClock "0:00:11"]
[Board "131"]

1. e4 {[%clk 0:03:00]}  d5 {[%clk 0:02:59]} 2. exd5 {[%clk 0:03:00]}  Nf6 {[%clk 0:02:57]} 3. Bb5+ {[%clk 0:02:59]}  Nbd7 {[%clk 0:02:54]} 4. Nc3 {[%clk 0:02:55]}  a6 {[%clk 0:02:48]} 5. Be2 {[%clk 0:02:54]}  Nb6 {[%clk 0:02:47]} 6. Nf3 {[%clk 0:02:53]}  Nbxd5 {[%clk 0:02:47]} 7. Nxd5 {[%clk 0:02:53]}  Qxd5 {[%clk 0:02:46]} 8. O-O {[%clk 0:02:49]}  Bg4 {[%clk 0:02:45]} 9. c4 {[%clk 0:02:43]}  Qh5 {[%clk 0:02:40]} 10. h3 {[%clk 0:02:40]}  O-O-O {[%clk 0:02:33]} 11. hxg4 {[%clk 0:02:37]}  Nxg4 {[%clk 0:02:32]} 12. d3 {[%clk 0:02:30]}  e6 {[%clk 0:02:28]} 13. Bf4 {[%clk 0:02:29]}  Bd6 {[%clk 0:02:26]} 14. Bxd6 {[%clk 0:02:26]}  Rxd6 {[%clk 0:02:25]} 15. c5 {[%clk 0:02:23]}  Rd5 {[%clk 0:02:21]} 16. c6 {[%clk 0:02:19]}  b6 {[%clk 0:02:12]} 17. Qa4 {[%clk 0:02:17]}  a5 {[%clk 0:02:02]} 18. Qf4 {[%clk 0:01:58]}  Rf5 {[%clk 0:01:58]} 19. Qg3 {[%clk 0:01:57]}  Rd8 {[%clk 0:01:22]} 20. Nh2 {[%clk 0:01:38]}  Qxh2+ {[%clk 0:01:16]} 21. Qxh2 {[%clk 0:01:39]}  Nxh2 {[%clk 0:01:16]} 22. Kxh2 {[%clk 0:01:40]}  Re5 {[%clk 0:01:14]} 23. Rfe1 {[%clk 0:01:36]}  Rc5 {[%clk 0:01:12]} 24. Rac1 {[%clk 0:01:35]}  Rxc1 {[%clk 0:01:07]} 25. Rxc1 {[%clk 0:01:34]}  Rd6 {[%clk 0:01:08]} 26. a3 {[%clk 0:01:29]}  Kb8 {[%clk 0:01:07]} 27. b4 {[%clk 0:01:27]}  a4 {[%clk 0:01:05]} 28. Kg1 {[%clk 0:01:23]}  Ka7 {[%clk 0:01:03]} 29. Kf1 {[%clk 0:01:16]}  f6 {[%clk 0:00:59]} 30. Ke1 {[%clk 0:01:16]}  e5 {[%clk 0:00:58]} 31. Rc4 {[%clk 0:01:13]}  b5 {[%clk 0:00:54]} 32. Rh4 {[%clk 0:01:04]}  h6 {[%clk 0:00:52]} 33. Kd2 {[%clk 0:01:04]}  Kb6 {[%clk 0:00:51]} 34. Bf3 {[%clk 0:01:04]}  f5 {[%clk 0:00:44]} 35. Rh5 {[%clk 0:00:53]}  e4 {[%clk 0:00:41]} 36. Be2 {[%clk 0:00:52]}  Rd5 {[%clk 0:00:33]} 37. Kc3 {[%clk 0:00:43]}  exd3 {[%clk 0:00:17]} 38. Bxd3 {[%clk 0:00:44]}  g6 {[%clk 0:00:15]} 39. Rxh6 {[%clk 0:00:44]}  Re5 {[%clk 0:00:16]} 40. Rxg6 {[%clk 0:00:43]}  Rd5 {[%clk 0:00:16]} 41. f3 {[%clk 0:00:41]}  Re5 {[%clk 0:00:16]} 42. Rg5 {[%clk 0:00:41]}  Rd5 {[%clk 0:00:15]} 43. Rxf5 {[%clk 0:00:41]}  Rd6 {[%clk 0:00:15]} 44. Be4 {[%clk 0:00:40]}  Rh6 {[%clk 0:00:16]} 45. g4 {[%clk 0:00:39]}  Rh1 {[%clk 0:00:14]} 46. g5 {[%clk 0:00:39]}  Ra1 {[%clk 0:00:15]} 47. Kb2 {[%clk 0:00:38]}  Re1 {[%clk 0:00:14]} 48. g6 {[%clk 0:00:38]}  Re3 {[%clk 0:00:15]} 49. g7 {[%clk 0:00:37]}  Rb3+ {[%clk 0:00:15]} 50. Ka2 {[%clk 0:00:37]}  Rc3 {[%clk 0:00:15]} 51. g8=Q {[%clk 0:00:37]}  Ka6 {[%clk 0:00:11]} 52. Qa8+ {[%clk 0:00:36]} 1-0


[Site "https://www.chess.com"]

[Event "Titled Tuesday Blitz October 31 Late 2023"]
[White "Shapiro, Daniel"]
[Black "Shohat, Yotam"]
[WhiteFideId "2001780"]
[BlackFideId "2813955"]
[WhiteElo "2308"]
[BlackElo "2496"]
[Result "1-0"]
[Round "2"]
[TimeControl "180+1"]
[Date "2023.10.31"]
[WhiteClock "0:00:41"]
[BlackClock "0:00:00"]
[Board "132"]

1. d4 {[%clk 0:03:00]}  Nf6 {[%clk 0:02:59]} 2. c4 {[%clk 0:02:59]}  e6 {[%clk 0:02:49]} 3. g3 {[%clk 0:02:58]}  Bb4+ {[%clk 0:02:39]} 4. Bd2 {[%clk 0:02:59]}  Be7 {[%clk 0:02:38]} 5. Nf3 {[%clk 0:02:57]}  d5 {[%clk 0:02:38]} 6. Bg2 {[%clk 0:02:56]}  O-O {[%clk 0:02:31]} 7. Qc2 {[%clk 0:02:55]}  Nbd7 {[%clk 0:02:25]} 8. O-O {[%clk 0:02:54]}  c6 {[%clk 0:02:24]} 9. Rd1 {[%clk 0:02:54]}  b6 {[%clk 0:02:23]} 10. Bf4 {[%clk 0:02:53]}  a5 {[%clk 0:02:00]} 11. Nc3 {[%clk 0:02:53]}  dxc4 {[%clk 0:01:57]} 12. Nd2 {[%clk 0:02:52]}  Ba6 {[%clk 0:01:51]} 13. Bxc6 {[%clk 0:02:50]}  Rc8 {[%clk 0:01:52]} 14. Ba4 {[%clk 0:02:36]}  Nd5 {[%clk 0:01:39]} 15. Nxd5 {[%clk 0:02:01]}  exd5 {[%clk 0:01:40]} 16. Qf5 {[%clk 0:01:58]}  Nf6 {[%clk 0:01:32]} 17. Bc2 {[%clk 0:01:51]}  Rc6 {[%clk 0:01:21]} 18. Nf3 {[%clk 0:01:36]}  Bc8 {[%clk 0:01:10]} 19. Qg5 {[%clk 0:01:28]}  Ng4 {[%clk 0:00:48]} 20. Qh5 {[%clk 0:01:09]}  g6 {[%clk 0:00:46]} 21. Qh3 {[%clk 0:01:07]}  Ne3 {[%clk 0:00:31]} 22. Qh6 {[%clk 0:01:04]}  Nxc2 {[%clk 0:00:31]} 23. Ne5 {[%clk 0:01:00]}  Re6 {[%clk 0:00:25]} 24. Kg2 {[%clk 0:01:00]}  f6 {[%clk 0:00:21]} 25. Nxg6 {[%clk 0:00:59]}  Rf7 {[%clk 0:00:16]} 26. Nh4 {[%clk 0:00:56]}  Rxe2 {[%clk 0:00:12]} 27. Qh5 {[%clk 0:00:56]}  Re4 {[%clk 0:00:10]} 28. Rd2 {[%clk 0:00:50]}  Nxd4 {[%clk 0:00:10]} 29. Be3 {[%clk 0:00:43]}  Ne6 {[%clk 0:00:06]} 30. Nf5 {[%clk 0:00:42]}  Ng7 {[%clk 0:00:00]} 31. Nh6+ {[%clk 0:00:41]} 1-0


[Site "https://www.chess.com"]

[Event "Titled Tuesday Blitz October 31 Late 2023"]
[White "Schut, Han"]
[Black "Tworuszka, Michal"]
[WhiteFideId "1005561"]
[BlackFideId "1117858"]
[WhiteElo "2289"]
[BlackElo "2486"]
[Result "0-1"]
[Round "2"]
[TimeControl "180+1"]
[Date "2023.10.31"]
[WhiteClock "0:00:00"]
[BlackClock "0:00:01"]
[Board "136"]

1. e4 {[%clk 0:02:58]}  c5 {[%clk 0:02:58]} 2. Nf3 {[%clk 0:02:58]}  d6 {[%clk 0:02:56]} 3. d4 {[%clk 0:02:59]}  cxd4 {[%clk 0:02:57]} 4. Nxd4 {[%clk 0:03:00]}  Nf6 {[%clk 0:02:58]} 5. f3 {[%clk 0:03:00]}  e5 {[%clk 0:02:57]} 6. Bb5+ {[%clk 0:02:59]}  Bd7 {[%clk 0:02:41]} 7. Bxd7+ {[%clk 0:02:59]}  Qxd7 {[%clk 0:02:42]} 8. Nf5 {[%clk 0:02:59]}  d5 {[%clk 0:02:42]} 9. Bg5 {[%clk 0:02:59]}  d4 {[%clk 0:02:09]} 10. c3 {[%clk 0:02:58]}  Nc6 {[%clk 0:02:06]} 11. O-O {[%clk 0:02:36]}  Bc5 {[%clk 0:01:59]} 12. Kh1 {[%clk 0:02:03]}  Ne7 {[%clk 0:01:24]} 13. Nxg7+ {[%clk 0:01:59]}  Kf8 {[%clk 0:01:15]} 14. Bxf6 {[%clk 0:01:56]}  Rg8 {[%clk 0:01:12]} 15. Bxe7+ {[%clk 0:01:33]}  Qxe7 {[%clk 0:01:13]} 16. Nf5 {[%clk 0:01:33]}  Qg5 {[%clk 0:01:13]} 17. g3 {[%clk 0:01:23]}  Rd8 {[%clk 0:01:10]} 18. cxd4 {[%clk 0:01:19]}  Bxd4 {[%clk 0:01:11]} 19. Qb3 {[%clk 0:01:12]}  h5 {[%clk 0:00:49]} 20. Qb4+ {[%clk 0:01:08]}  Ke8 {[%clk 0:00:45]} 21. h4 {[%clk 0:00:48]}  Qf6 {[%clk 0:00:40]} 22. Nc3 {[%clk 0:00:48]}  Rxg3 {[%clk 0:00:28]} 23. Nxg3 {[%clk 0:00:23]}  Qxh4+ {[%clk 0:00:28]} 24. Kg2 {[%clk 0:00:24]}  Qg5 {[%clk 0:00:29]} 25. Rh1 {[%clk 0:00:18]}  h4 {[%clk 0:00:29]} 26. Rxh4 {[%clk 0:00:18]}  Qxh4 {[%clk 0:00:30]} 27. Rh1 {[%clk 0:00:19]}  Qf6 {[%clk 0:00:23]} 28. Nd5 {[%clk 0:00:19]}  Qg7 {[%clk 0:00:22]} 29. Rh4 {[%clk 0:00:17]}  Rd7 {[%clk 0:00:17]} 30. Rg4 {[%clk 0:00:17]}  Qh8 {[%clk 0:00:13]} 31. Qb5 {[%clk 0:00:17]}  a6 {[%clk 0:00:10]} 32. Qb6 {[%clk 0:00:14]}  Bxb6 {[%clk 0:00:09]} 33. Nxb6 {[%clk 0:00:15]}  Rd2+ {[%clk 0:00:08]} 34. Kf1 {[%clk 0:00:13]}  Kd8 {[%clk 0:00:05]} 35. Ke1 {[%clk 0:00:09]}  Rxb2 {[%clk 0:00:05]} 36. Nc4 {[%clk 0:00:08]}  Rxa2 {[%clk 0:00:04]} 37. Nd6 {[%clk 0:00:05]}  Kd7 {[%clk 0:00:03]} 38. Nxf7 {[%clk 0:00:05]}  Qh2 {[%clk 0:00:03]} 39. Nxe5+ {[%clk 0:00:04]}  Ke6 {[%clk 0:00:03]} 40. Nd3 {[%clk 0:00:00]}  Ra1+ {[%clk 0:00:01]} 0-1


[Site "https://www.chess.com"]